[Event "January 2 Late 2024"]
[Site "https://www.chess.com"]
[Date "2024.01.02"]
[Round "1"]
[White "Spata, German"]
[Black "CRObliterator"]
[Result "1-0"]
[Board "145"]
[TimeControl "180+1"]
[WhiteFideId "113026"]
[WhiteElo "2652"]
[BlackElo "2341"]
[WhiteTeam "ARG"]
[WhiteClock "0:00:28"]
[BlackClock "0:00:04"]

1. Nf3 {[%clk 0:02:53]}  Nf6 {[%clk 0:02:59]} 2. d4 {[%clk 0:02:46]}  d5 {[%clk 0:02:58]} 3. Bf4 {[%clk 0:02:46]}  c5 {[%clk 0:02:55]} 4. c3 {[%clk 0:02:46]}  Nc6 {[%clk 0:02:54]} 5. e3 {[%clk 0:02:41]}  Qb6 {[%clk 0:02:53]} 6. Qb3 {[%clk 0:02:41]}  c4 {[%clk 0:02:50]} 7. Qc2 {[%clk 0:02:40]}  Bf5 {[%clk 0:02:48]} 8. Qc1 {[%clk 0:02:41]}  Nh5 {[%clk 0:02:44]} 9. Bg5 {[%clk 0:02:40]}  h6 {[%clk 0:02:42]} 10. Bh4 {[%clk 0:02:40]}  g5 {[%clk 0:02:42]} 11. Bg3 {[%clk 0:02:40]}  Bg7 {[%clk 0:02:37]} 12. Be2 {[%clk 0:02:40]}  Nxg3 {[%clk 0:02:30]} 13. hxg3 {[%clk 0:02:40]}  e5 {[%clk 0:02:24]} 14. dxe5 {[%clk 0:02:38]}  Nxe5 {[%clk 0:02:23]} 15. Nxe5 {[%clk 0:02:38]}  Bxe5 {[%clk 0:02:23]} 16. Nd2 {[%clk 0:02:37]}  O-O {[%clk 0:02:09]} 17. Nf3 {[%clk 0:02:20]}  Bg7 {[%clk 0:02:07]} 18. O-O {[%clk 0:02:18]}  Rfe8 {[%clk 0:02:00]} 19. Rd1 {[%clk 0:02:17]}  Rad8 {[%clk 0:01:59]} 20. Nd4 {[%clk 0:02:16]}  Be4 {[%clk 0:01:51]} 21. Bf3 {[%clk 0:02:12]}  Rd7 {[%clk 0:01:32]} 22. b3 {[%clk 0:02:05]}  Bxd4 {[%clk 0:01:13]} 23. Rxd4 {[%clk 0:02:02]}  cxb3 {[%clk 0:01:10]} 24. axb3 {[%clk 0:01:52]}  Bxf3 {[%clk 0:01:07]} 25. gxf3 {[%clk 0:01:51]}  Rc8 {[%clk 0:01:00]} 26. Qb2 {[%clk 0:01:36]}  Rdc7 {[%clk 0:00:56]} 27. Rc1 {[%clk 0:01:33]}  Qa5 {[%clk 0:00:55]} 28. b4 {[%clk 0:01:29]}  Qb5 {[%clk 0:00:51]} 29. Qd2 {[%clk 0:01:29]}  Qc6 {[%clk 0:00:19]} 30. Rxd5 {[%clk 0:01:27]}  Qf6 {[%clk 0:00:20]} 31. Rd6 {[%clk 0:01:10]}  Qxf3 {[%clk 0:00:19]} 32. Rxh6 {[%clk 0:01:10]}  Kg7 {[%clk 0:00:13]} 33. Rh2 {[%clk 0:00:59]}  Qf6 {[%clk 0:00:13]} 34. Rh5 {[%clk 0:00:53]}  Rxc3 {[%clk 0:00:13]} 35. Rxc3 {[%clk 0:00:52]}  Rxc3 {[%clk 0:00:13]} 36. Rxg5+ {[%clk 0:00:51]}  Qxg5 {[%clk 0:00:13]} 37. Qxc3+ {[%clk 0:00:51]}  Kg6 {[%clk 0:00:14]} 38. Qd3+ {[%clk 0:00:48]}  Kg7 {[%clk 0:00:13]} 39. Qd4+ {[%clk 0:00:48]}  Kg6 {[%clk 0:00:13]} 40. Qxa7 {[%clk 0:00:46]}  Qb5 {[%clk 0:00:13]} 41. Qd4 {[%clk 0:00:44]}  f6 {[%clk 0:00:12]} 42. Qg4+ {[%clk 0:00:43]}  Kf7 {[%clk 0:00:12]} 43. Qd4 {[%clk 0:00:42]}  Kg6 {[%clk 0:00:12]} 44. Kg2 {[%clk 0:00:41]}  Qc6+ {[%clk 0:00:11]} 45. e4 {[%clk 0:00:42]}  Qb5 {[%clk 0:00:12]} 46. Qc5 {[%clk 0:00:36]}  Qe2 {[%clk 0:00:11]} 47. Qf5+ {[%clk 0:00:35]}  Kf7 {[%clk 0:00:11]} 48. e5 {[%clk 0:00:34]}  Qc4 {[%clk 0:00:09]} 49. Qxf6+ {[%clk 0:00:34]}  Kg8 {[%clk 0:00:09]} 50. Qg6+ {[%clk 0:00:33]}  Kf8 {[%clk 0:00:09]} 51. Qd6+ {[%clk 0:00:33]}  Kg7 {[%clk 0:00:08]} 52. Qf6+ {[%clk 0:00:31]}  Kg8 {[%clk 0:00:08]} 53. Qf4 {[%clk 0:00:32]}  Qd5+ {[%clk 0:00:07]} 54. Kg1 {[%clk 0:00:32]}  Qd1+ {[%clk 0:00:07]} 55. Kh2 {[%clk 0:00:32]}  Qh5+ {[%clk 0:00:08]} 56. Kg2 {[%clk 0:00:33]}  Qd1 {[%clk 0:00:07]} 57. Qe4 {[%clk 0:00:29]}  Qd7 {[%clk 0:00:05]} 58. e6 {[%clk 0:00:30]}  Qe7 {[%clk 0:00:05]} 59. b5 {[%clk 0:00:28]}  Kg7 {[%clk 0:00:05]} 60. Qg4+ {[%clk 0:00:27]}  Kf8 {[%clk 0:00:05]} 61. Qf5+ {[%clk 0:00:27]}  Ke8 {[%clk 0:00:04]} 62. Qf7+ {[%clk 0:00:27]}  Qxf7 {[%clk 0:00:04]} 63. exf7+ {[%clk 0:00:28]}  Kxf7 {[%clk 0:00:04]} 64. Kf3 {[%clk 0:00:28]} 1-0

[Event "January 2 Late 2024"]
[Site "https://www.chess.com"]
[Date "2024.01.02"]
[Round "1"]
[White "Poddubnyi, Viktor"]
[Black "Jakubowski, Krzysztof"]
[Result "0-1"]
[Board "146"]
[TimeControl "180+1"]
[WhiteFideId "4141989"]
[BlackFideId "1112848"]
[WhiteElo "2341"]
[BlackElo "2651"]
[WhiteTeam "RUS"]
[BlackTeam "POL"]
[WhiteClock "0:00:00"]
[BlackClock "0:00:19"]

1. e4 {[%clk 0:02:59]}  c5 {[%clk 0:02:59]} 2. Nf3 {[%clk 0:02:59]}  d6 {[%clk 0:02:59]} 3. d4 {[%clk 0:03:00]}  cxd4 {[%clk 0:02:59]} 4. Nxd4 {[%clk 0:03:00]}  Nf6 {[%clk 0:02:58]} 5. Nc3 {[%clk 0:03:01]}  a6 {[%clk 0:02:58]} 6. Be3 {[%clk 0:03:01]}  e6 {[%clk 0:02:56]} 7. g4 {[%clk 0:03:00]}  h6 {[%clk 0:02:49]} 8. Rg1 {[%clk 0:02:47]}  b5 {[%clk 0:02:38]} 9. a3 {[%clk 0:02:47]}  Bb7 {[%clk 0:02:35]} 10. Bd3 {[%clk 0:02:40]}  Nbd7 {[%clk 0:02:22]} 11. f4 {[%clk 0:02:30]}  g6 {[%clk 0:01:59]} 12. Qf3 {[%clk 0:02:10]}  Rc8 {[%clk 0:01:55]} 13. f5 {[%clk 0:01:26]}  e5 {[%clk 0:01:39]} 14. Nde2 {[%clk 0:01:21]}  g5 {[%clk 0:01:32]} 15. h4 {[%clk 0:00:59]}  gxh4 {[%clk 0:01:28]} 16. g5 {[%clk 0:00:59]}  hxg5 {[%clk 0:01:28]} 17. Bxg5 {[%clk 0:00:58]}  Be7 {[%clk 0:01:09]} 18. O-O-O {[%clk 0:00:54]}  Qa5 {[%clk 0:01:08]} 19. Rh1 {[%clk 0:00:33]}  b4 {[%clk 0:00:52]} 20. axb4 {[%clk 0:00:33]}  Qxb4 {[%clk 0:00:47]} 21. Rxh4 {[%clk 0:00:27]}  Rxh4 {[%clk 0:00:44]} 22. Bxh4 {[%clk 0:00:28]}  Nc5 {[%clk 0:00:41]} 23. Bxf6 {[%clk 0:00:22]}  Bxf6 {[%clk 0:00:41]} 24. Qe3 {[%clk 0:00:16]}  Rb8 {[%clk 0:00:38]} 25. b3 {[%clk 0:00:11]}  Qa3+ {[%clk 0:00:32]} 26. Kd2 {[%clk 0:00:10]}  Ke7 {[%clk 0:00:21]} 27. Rh1 {[%clk 0:00:09]}  Rg8 {[%clk 0:00:20]} 28. Rh7 {[%clk 0:00:00]}  Bg5 {[%clk 0:00:19]} 0-1

[Event "January 2 Late 2024"]
[Site "https://www.chess.com"]
[Date "2024.01.02"]
[Round "1"]
[White "Janaszak, Dawid"]
[Black "Ankerst, Mihael"]
[Result "0-1"]
[Board "147"]
[TimeControl "180+1"]
[WhiteFideId "1119206"]
[BlackFideId "14602369"]
[WhiteElo "2648"]
[BlackElo "2340"]
[WhiteTeam "POL"]
[BlackTeam "SLO"]
[WhiteClock "0:00:25"]
[BlackClock "0:00:35"]

1. e4 {[%clk 0:03:00]}  c5 {[%clk 0:02:59]} 2. Nc3 {[%clk 0:03:00]}  Nc6 {[%clk 0:02:59]} 3. Bb5 {[%clk 0:02:59]}  e6 {[%clk 0:02:59]} 4. Nf3 {[%clk 0:02:57]}  Nge7 {[%clk 0:02:58]} 5. O-O {[%clk 0:02:56]}  Ng6 {[%clk 0:02:58]} 6. Re1 {[%clk 0:02:55]}  Be7 {[%clk 0:02:58]} 7. d4 {[%clk 0:02:54]}  cxd4 {[%clk 0:02:58]} 8. Nxd4 {[%clk 0:02:54]}  O-O {[%clk 0:02:58]} 9. Bf1 {[%clk 0:02:51]}  Qc7 {[%clk 0:02:58]} 10. g3 {[%clk 0:02:47]}  a6 {[%clk 0:02:58]} 11. Bg2 {[%clk 0:02:45]}  b5 {[%clk 0:02:50]} 12. a3 {[%clk 0:02:39]}  Bb7 {[%clk 0:02:50]} 13. Be3 {[%clk 0:02:37]}  Nge5 {[%clk 0:02:50]} 14. Nxc6 {[%clk 0:02:32]}  Bxc6 {[%clk 0:02:48]} 15. Qh5 {[%clk 0:02:25]}  Rac8 {[%clk 0:02:41]} 16. Bf4 {[%clk 0:02:14]}  d6 {[%clk 0:02:41]} 17. Nd1 {[%clk 0:02:00]}  Bb7 {[%clk 0:02:34]} 18. Ne3 {[%clk 0:02:00]}  Rfd8 {[%clk 0:02:32]} 19. Rad1 {[%clk 0:01:56]}  Bf6 {[%clk 0:02:23]} 20. c3 {[%clk 0:01:51]}  a5 {[%clk 0:02:22]} 21. Ng4 {[%clk 0:01:45]}  Nxg4 {[%clk 0:02:22]} 22. Qxg4 {[%clk 0:01:46]}  b4 {[%clk 0:02:15]} 23. cxb4 {[%clk 0:01:46]}  axb4 {[%clk 0:02:15]} 24. axb4 {[%clk 0:01:40]}  Bxb2 {[%clk 0:02:15]} 25. Rb1 {[%clk 0:01:37]}  Bf6 {[%clk 0:02:14]} 26. b5 {[%clk 0:01:34]}  Qb6 {[%clk 0:02:14]} 27. h4 {[%clk 0:01:29]}  Rc4 {[%clk 0:02:13]} 28. Be3 {[%clk 0:01:29]}  Bd4 {[%clk 0:02:08]} 29. Qe2 {[%clk 0:01:23]}  Rdc8 {[%clk 0:02:06]} 30. Bxd4 {[%clk 0:01:18]}  Rxd4 {[%clk 0:02:07]} 31. Qe3 {[%clk 0:01:11]}  Qc5 {[%clk 0:01:33]} 32. b6 {[%clk 0:01:07]}  h6 {[%clk 0:01:19]} 33. Rec1 {[%clk 0:00:57]}  Rc4 {[%clk 0:01:18]} 34. Rxc4 {[%clk 0:00:55]}  Qxc4 {[%clk 0:01:17]} 35. Qf4 {[%clk 0:00:53]}  Qc2 {[%clk 0:01:10]} 36. Ra1 {[%clk 0:00:49]}  Qb2 {[%clk 0:01:09]} 37. Ra7 {[%clk 0:00:48]}  Qxb6 {[%clk 0:01:08]} 38. Ra1 {[%clk 0:00:45]}  Rc2 {[%clk 0:01:05]} 39. h5 {[%clk 0:00:39]}  d5 {[%clk 0:01:05]} 40. e5 {[%clk 0:00:35]}  Qb2 {[%clk 0:00:54]} 41. Re1 {[%clk 0:00:31]}  Ba6 {[%clk 0:00:45]} 42. Bh3 {[%clk 0:00:25]}  Bc4 {[%clk 0:00:41]} 43. Bg4 {[%clk 0:00:24]}  Qc3 {[%clk 0:00:38]} 44. Rb1 {[%clk 0:00:21]}  Rb2 {[%clk 0:00:38]} 45. Rc1 {[%clk 0:00:20]}  Qd2 {[%clk 0:00:35]} 46. Qxd2 {[%clk 0:00:17]}  Rxd2 {[%clk 0:00:36]} 47. Ra1 {[%clk 0:00:18]}  Be2 {[%clk 0:00:36]} 48. Bh3 {[%clk 0:00:18]}  Bf3 {[%clk 0:00:36]} 49. g4 {[%clk 0:00:17]}  Re2 {[%clk 0:00:36]} 50. Ra8+ {[%clk 0:00:17]}  Kh7 {[%clk 0:00:35]} 51. Ra7 {[%clk 0:00:18]}  Kg8 {[%clk 0:00:33]} 52. Ra8+ {[%clk 0:00:18]}  Kh7 {[%clk 0:00:34]} 53. Ra7 {[%clk 0:00:19]}  Rxe5 {[%clk 0:00:34]} 54. Rxf7 {[%clk 0:00:19]}  Rg5 {[%clk 0:00:33]} 55. Kh2 {[%clk 0:00:19]}  Bxg4 {[%clk 0:00:33]} 56. f4 {[%clk 0:00:19]}  Rxh5 {[%clk 0:00:33]} 57. Kg3 {[%clk 0:00:20]}  Bxh3 {[%clk 0:00:33]} 58. Re7 {[%clk 0:00:20]}  Bf5 {[%clk 0:00:33]} 59. Rf7 {[%clk 0:00:20]}  Kg6 {[%clk 0:00:34]} 60. Rf8 {[%clk 0:00:20]}  Rh3+ {[%clk 0:00:34]} 61. Kg2 {[%clk 0:00:20]}  Rd3 {[%clk 0:00:35]} 62. Rd8 {[%clk 0:00:20]}  h5 {[%clk 0:00:36]} 63. Rd6 {[%clk 0:00:21]}  Kf6 {[%clk 0:00:36]} 64. Kh2 {[%clk 0:00:22]}  Rf3 {[%clk 0:00:35]} 65. Ra6 {[%clk 0:00:22]}  Rxf4 {[%clk 0:00:35]} 66. Ra8 {[%clk 0:00:23]}  Re4 {[%clk 0:00:35]} 67. Rf8+ {[%clk 0:00:24]}  Ke5 {[%clk 0:00:35]} 68. Rh8 {[%clk 0:00:24]}  g6 {[%clk 0:00:36]} 69. Rxh5 {[%clk 0:00:25]}  gxh5 {[%clk 0:00:35]} 0-1

[Event "January 2 Late 2024"]
[Site "https://www.chess.com"]
[Date "2024.01.02"]
[Round "1"]
[White "Kostiukov, Alexandr"]
[Black "Olsen, Filip Boe"]
[Result "0-1"]
[Board "150"]
[TimeControl "180+1"]
[WhiteFideId "14108100"]
[BlackFideId "1440640"]
[WhiteElo "2333"]
[BlackElo "2645"]
[WhiteTeam "UKR"]
[BlackTeam "DEN"]
[WhiteClock "0:00:00"]
[BlackClock "0:00:21"]

1. g3 {[%clk 0:03:00]}  d5 {[%clk 0:02:59]} 2. Bg2 {[%clk 0:03:01]}  c6 {[%clk 0:03:00]} 3. d3 {[%clk 0:03:01]}  Nf6 {[%clk 0:03:00]} 4. e4 {[%clk 0:03:01]}  dxe4 {[%clk 0:03:00]} 5. dxe4 {[%clk 0:03:02]}  Qxd1+ {[%clk 0:03:00]} 6. Kxd1 {[%clk 0:03:03]}  e5 {[%clk 0:03:00]} 7. f3 {[%clk 0:03:03]}  Be6 {[%clk 0:03:00]} 8. Nd2 {[%clk 0:03:01]}  Nbd7 {[%clk 0:03:00]} 9. Bh3 {[%clk 0:03:01]}  Bxh3 {[%clk 0:02:52]} 10. Nxh3 {[%clk 0:03:02]}  h6 {[%clk 0:02:51]} 11. Nc4 {[%clk 0:02:57]}  O-O-O {[%clk 0:02:40]} 12. Ke2 {[%clk 0:02:56]}  Bc5 {[%clk 0:02:35]} 13. Be3 {[%clk 0:02:50]}  Rhe8 {[%clk 0:02:35]} 14. Nf2 {[%clk 0:02:26]}  Bb6 {[%clk 0:02:14]} 15. Nd6+ {[%clk 0:02:24]}  Kc7 {[%clk 0:02:11]} 16. Nxe8+ {[%clk 0:02:24]}  Rxe8 {[%clk 0:02:11]} 17. Nd3 {[%clk 0:02:13]}  Bd4 {[%clk 0:02:05]} 18. c3 {[%clk 0:02:12]}  Bb6 {[%clk 0:02:05]} 19. a4 {[%clk 0:02:09]}  a5 {[%clk 0:02:03]} 20. Rhd1 {[%clk 0:02:04]}  Bxe3 {[%clk 0:02:02]} 21. Kxe3 {[%clk 0:02:05]}  Nb6 {[%clk 0:02:02]} 22. b3 {[%clk 0:02:04]}  Nfd7 {[%clk 0:02:02]} 23. h4 {[%clk 0:01:57]}  f6 {[%clk 0:02:03]} 24. g4 {[%clk 0:01:57]}  Nf8 {[%clk 0:02:00]} 25. Nc5 {[%clk 0:01:40]}  Nbd7 {[%clk 0:01:57]} 26. Nxd7 {[%clk 0:01:36]}  Nxd7 {[%clk 0:01:58]} 27. b4 {[%clk 0:01:27]}  Ra8 {[%clk 0:01:52]} 28. g5 {[%clk 0:01:17]}  hxg5 {[%clk 0:01:47]} 29. hxg5 {[%clk 0:01:18]}  Nb6 {[%clk 0:01:42]} 30. g6 {[%clk 0:00:50]}  Nc4+ {[%clk 0:01:34]} 31. Kf2 {[%clk 0:00:50]}  Nb2 {[%clk 0:01:03]} 32. Rd2 {[%clk 0:00:35]}  Rh8 {[%clk 0:01:03]} 33. Kg2 {[%clk 0:00:20]}  Nc4 {[%clk 0:01:01]} 34. Rd3 {[%clk 0:00:16]}  Rh6 {[%clk 0:01:02]} 35. Rad1 {[%clk 0:00:15]}  Rxg6+ {[%clk 0:01:01]} 36. Kf2 {[%clk 0:00:14]}  Kb6 {[%clk 0:00:59]} 37. Rd7 {[%clk 0:00:13]}  Rh6 {[%clk 0:00:48]} 38. Kg2 {[%clk 0:00:13]}  Ne3+ {[%clk 0:00:47]} 39. Kg3 {[%clk 0:00:13]}  Nxd1 {[%clk 0:00:48]} 40. Rxd1 {[%clk 0:00:13]}  Kc7 {[%clk 0:00:47]} 41. bxa5 {[%clk 0:00:12]}  Rh8 {[%clk 0:00:46]} 42. Rg1 {[%clk 0:00:09]}  Kd6 {[%clk 0:00:42]} 43. Kg4 {[%clk 0:00:09]}  g6 {[%clk 0:00:41]} 44. Rb1 {[%clk 0:00:07]}  Rh7 {[%clk 0:00:40]} 45. Rb6 {[%clk 0:00:06]}  Kc5 {[%clk 0:00:40]} 46. Rb4 {[%clk 0:00:05]}  Rd7 {[%clk 0:00:35]} 47. f4 {[%clk 0:00:04]}  exf4 {[%clk 0:00:28]} 48. Kxf4 {[%clk 0:00:05]}  Kd6 {[%clk 0:00:20]} 49. Rb2 {[%clk 0:00:03]}  Kc7 {[%clk 0:00:20]} 50. Rb4 {[%clk 0:00:03]}  Re7 {[%clk 0:00:20]} 51. Rd4 {[%clk 0:00:00]}  Re5 {[%clk 0:00:21]} 0-1

[Event "January 2 Late 2024"]
[Site "https://www.chess.com"]
[Date "2024.01.02"]
[Round "1"]
[White "Wendt, Jan-Dietrich"]
[Black "Atanasov, Anthony"]
[Result "0-1"]
[Board "152"]
[TimeControl "180+1"]
[WhiteFideId "4623797"]
[BlackFideId "2623897"]
[WhiteElo "2324"]
[BlackElo "2644"]
[WhiteTeam "GER"]
[BlackTeam "CAN"]
[WhiteClock "0:00:31"]
[BlackClock "0:00:06"]

1. Nf3 {[%clk 0:02:58]}  d5 {[%clk 0:02:59]} 2. c4 {[%clk 0:02:58]}  d4 {[%clk 0:02:59]} 3. g3 {[%clk 0:02:58]}  Nc6 {[%clk 0:02:59]} 4. Bg2 {[%clk 0:02:57]}  e5 {[%clk 0:03:00]} 5. d3 {[%clk 0:02:58]}  Nf6 {[%clk 0:02:54]} 6. O-O {[%clk 0:02:57]}  Bc5 {[%clk 0:02:54]} 7. b4 {[%clk 0:02:55]}  Bxb4 {[%clk 0:02:54]} 8. Nxe5 {[%clk 0:02:55]}  Nxe5 {[%clk 0:02:34]} 9. Qa4+ {[%clk 0:02:54]}  Bd7 {[%clk 0:02:35]} 10. Qxb4 {[%clk 0:02:51]}  Bc6 {[%clk 0:02:35]} 11. Bxc6+ {[%clk 0:02:41]}  bxc6 {[%clk 0:02:27]} 12. Ba3 {[%clk 0:02:39]}  Ned7 {[%clk 0:02:04]} 13. Qa4 {[%clk 0:02:28]}  Rb8 {[%clk 0:01:44]} 14. Nd2 {[%clk 0:02:19]}  Qc8 {[%clk 0:01:30]} 15. Nf3 {[%clk 0:02:08]}  c5 {[%clk 0:01:07]} 16. Bxc5 {[%clk 0:02:08]}  c6 {[%clk 0:01:07]} 17. Bxd4 {[%clk 0:02:01]}  c5 {[%clk 0:01:06]} 18. Be5 {[%clk 0:01:52]}  Rb6 {[%clk 0:01:02]} 19. Bxf6 {[%clk 0:01:44]}  Ra6 {[%clk 0:00:49]} 20. Qb5 {[%clk 0:01:35]}  Rb6 {[%clk 0:00:49]} 21. Qa5 {[%clk 0:01:30]}  Ra6 {[%clk 0:00:47]} 22. Qc3 {[%clk 0:01:28]}  Rxf6 {[%clk 0:00:44]} 23. Rab1 {[%clk 0:01:27]}  O-O {[%clk 0:00:42]} 24. Rb5 {[%clk 0:01:26]}  Qa6 {[%clk 0:00:40]} 25. Ra5 {[%clk 0:01:25]}  Qe6 {[%clk 0:00:39]} 26. Rxa7 {[%clk 0:01:22]}  Qxe2 {[%clk 0:00:38]} 27. Rxd7 {[%clk 0:01:16]}  Rxf3 {[%clk 0:00:37]} 28. Rd5 {[%clk 0:01:11]}  h5 {[%clk 0:00:25]} 29. h4 {[%clk 0:01:10]}  Ra8 {[%clk 0:00:20]} 30. Rg5 {[%clk 0:01:00]}  f6 {[%clk 0:00:17]} 31. Rxc5 {[%clk 0:01:00]}  Rxg3+ {[%clk 0:00:06]} 32. fxg3 {[%clk 0:00:33]}  Qg4 {[%clk 0:00:06]} 33. d4 {[%clk 0:00:30]}  Rxa2 {[%clk 0:00:06]} 34. Qf3 {[%clk 0:00:28]}  Qxd4+ {[%clk 0:00:06]} 35. Rf2 {[%clk 0:00:28]}  Qxc5 {[%clk 0:00:03]} 36. Kg2 {[%clk 0:00:29]}  Rxf2+ {[%clk 0:00:03]} 37. Qxf2 {[%clk 0:00:30]}  Qxc4 {[%clk 0:00:03]} 38. Qf3 {[%clk 0:00:29]}  Qf7 {[%clk 0:00:03]} 39. Kh2 {[%clk 0:00:28]}  Kh7 {[%clk 0:00:04]} 40. Qe4+ {[%clk 0:00:28]}  Qg6 {[%clk 0:00:05]} 41. Qf3 {[%clk 0:00:28]}  Kh6 {[%clk 0:00:04]} 42. Kg2 {[%clk 0:00:28]}  Kh7 {[%clk 0:00:05]} 43. Qf4 {[%clk 0:00:29]}  Qc2+ {[%clk 0:00:05]} 44. Kh3 {[%clk 0:00:27]}  Kg6 {[%clk 0:00:05]} 45. Qf3 {[%clk 0:00:26]}  Qf5+ {[%clk 0:00:04]} 46. Qxf5+ {[%clk 0:00:26]}  Kxf5 {[%clk 0:00:05]} 47. Kg2 {[%clk 0:00:27]}  Kg4 {[%clk 0:00:06]} 48. Kf2 {[%clk 0:00:27]}  g6 {[%clk 0:00:05]} 49. Kg2 {[%clk 0:00:27]}  f5 {[%clk 0:00:04]} 50. Kf2 {[%clk 0:00:25]}  f4 {[%clk 0:00:05]} 51. gxf4 {[%clk 0:00:25]}  Kxf4 {[%clk 0:00:06]} 52. Kg2 {[%clk 0:00:24]}  Kg4 {[%clk 0:00:06]} 53. Kh2 {[%clk 0:00:25]}  Kxh4 {[%clk 0:00:07]} 54. Kg2 {[%clk 0:00:26]}  Kg4 {[%clk 0:00:08]} 55. Kh2 {[%clk 0:00:26]}  h4 {[%clk 0:00:09]} 56. Kg2 {[%clk 0:00:27]}  g5 {[%clk 0:00:10]} 57. Kh2 {[%clk 0:00:28]}  Kh5 {[%clk 0:00:11]} 58. Kg2 {[%clk 0:00:29]}  g4 {[%clk 0:00:12]} 59. Kh2 {[%clk 0:00:30]}  Kg5 {[%clk 0:00:13]} 60. Kg2 {[%clk 0:00:30]}  g3 {[%clk 0:00:14]} 61. Kh3 {[%clk 0:00:29]}  Kh5 {[%clk 0:00:15]} 62. Kg2 {[%clk 0:00:29]}  Kg4 {[%clk 0:00:15]} 63. Kh1 {[%clk 0:00:29]}  h3 {[%clk 0:00:16]} 64. Kg1 {[%clk 0:00:30]}  Kf3 {[%clk 0:00:17]} 65. Kh1 {[%clk 0:00:31]}  Ke4 {[%clk 0:00:12]} 66. Kg1 {[%clk 0:00:32]}  h2+ {[%clk 0:00:11]} 67. Kh1 {[%clk 0:00:32]}  Kf4 {[%clk 0:00:08]} 68. Kg2 {[%clk 0:00:32]}  h1=N {[%clk 0:00:04]} 69. Kxh1 {[%clk 0:00:32]}  Kf3 {[%clk 0:00:04]} 70. Kg1 {[%clk 0:00:32]}  g2 {[%clk 0:00:05]} 71. Kh2 {[%clk 0:00:31]}  Kf2 {[%clk 0:00:06]} 0-1

[Event "January 2 Late 2024"]
[Site "https://www.chess.com"]
[Date "2024.01.02"]
[Round "1"]
[White "Ozates, Tuna"]
[Black "Korol, Dimitry"]
[Result "1-0"]
[Board "153"]
[TimeControl "180+1"]
[WhiteFideId "6354521"]
[BlackFideId "14108003"]
[WhiteElo "2643"]
[BlackElo "2323"]
[WhiteTeam "TUR"]
[BlackTeam "UKR"]
[WhiteClock "0:00:12"]
[BlackClock "0:00:00"]

1. e4 {[%clk 0:03:00]}  c5 {[%clk 0:02:59]} 2. Nf3 {[%clk 0:03:00]}  d6 {[%clk 0:03:00]} 3. Bb5+ {[%clk 0:03:00]}  Nd7 {[%clk 0:02:59]} 4. O-O {[%clk 0:02:59]}  Nf6 {[%clk 0:02:59]} 5. Re1 {[%clk 0:02:59]}  a6 {[%clk 0:02:59]} 6. Bf1 {[%clk 0:03:00]}  e5 {[%clk 0:02:59]} 7. c3 {[%clk 0:03:00]}  Be7 {[%clk 0:02:59]} 8. d4 {[%clk 0:03:01]}  O-O {[%clk 0:02:59]} 9. Nbd2 {[%clk 0:03:01]}  Qc7 {[%clk 0:02:59]} 10. dxe5 {[%clk 0:03:00]}  dxe5 {[%clk 0:02:58]} 11. Nc4 {[%clk 0:03:00]}  Re8 {[%clk 0:02:48]} 12. Bg5 {[%clk 0:02:57]}  b5 {[%clk 0:02:40]} 13. Ne3 {[%clk 0:02:57]}  Bb7 {[%clk 0:02:40]} 14. Nd5 {[%clk 0:02:44]}  Nxd5 {[%clk 0:02:33]} 15. exd5 {[%clk 0:02:45]}  Bd6 {[%clk 0:02:17]} 16. h3 {[%clk 0:02:31]}  c4 {[%clk 0:02:05]} 17. Nh4 {[%clk 0:02:27]}  f6 {[%clk 0:01:40]} 18. Be3 {[%clk 0:02:21]}  Rad8 {[%clk 0:01:34]} 19. Nf5 {[%clk 0:02:14]}  Bf8 {[%clk 0:01:24]} 20. b3 {[%clk 0:01:46]}  Nb6 {[%clk 0:01:05]} 21. bxc4 {[%clk 0:01:43]}  Nxc4 {[%clk 0:01:00]} 22. Qg4 {[%clk 0:01:34]}  Kh8 {[%clk 0:00:59]} 23. Rad1 {[%clk 0:01:32]}  Bxd5 {[%clk 0:00:44]} 24. a4 {[%clk 0:01:18]}  Be6 {[%clk 0:00:42]} 25. Qf3 {[%clk 0:01:13]}  Rxd1 {[%clk 0:00:22]} 26. Rxd1 {[%clk 0:01:13]}  Rd8 {[%clk 0:00:21]} 27. Ra1 {[%clk 0:01:07]}  Bxf5 {[%clk 0:00:17]} 28. Qxf5 {[%clk 0:01:07]}  Nxe3 {[%clk 0:00:17]} 29. fxe3 {[%clk 0:01:07]}  Qxc3 {[%clk 0:00:18]} 30. Rb1 {[%clk 0:01:00]}  Qxe3+ {[%clk 0:00:17]} 31. Kh1 {[%clk 0:01:00]}  Bc5 {[%clk 0:00:18]} 32. Kh2 {[%clk 0:00:40]}  Qg1+ {[%clk 0:00:11]} 33. Kg3 {[%clk 0:00:39]}  Be3 {[%clk 0:00:10]} 34. axb5 {[%clk 0:00:20]}  Bf4+ {[%clk 0:00:07]} 35. Kg4 {[%clk 0:00:18]}  Qf2 {[%clk 0:00:04]} 36. Rb3 {[%clk 0:00:12]}  Qxf1 {[%clk 0:00:04]} 37. g3 {[%clk 0:00:12]}  Qd1+ {[%clk 0:00:00]} 38. Rf3 {[%clk 0:00:12]} 1-0